[Event "TePe Sigeman & Co Chess Tournament 2025"]
[Site "Elite Plaza Hotel, Gustav Adolfs Torg 49, Malmo, Sweden"]
[Date "2025.05.20"]
[Round "1.4"]
[White "Ivanchuk, Vasyl"]
[Black "Robson, Ray"]
[Result "1/2-1/2"]
[TimeControl "90 minutes for 40 moves + 30 minutes for the rest of the game + 30 seconds per move from move one."]
[WhiteTitle "GM"]
[BlackTitle "GM"]
[WhiteFideId "14100010"]
[BlackFideId "2023970"]
[WhiteElo "2644"]
[BlackElo "2692"]

1. e4 {[%clk 01:30:57]} {[%emt 00:20:57]} e5 {[%clk 01:30:11]} {[%emt
00:01:02]} 2. Nf3 {[%clk 01:31:22]} {[%emt 00:00:06]} Nc6 {[%clk 01:30:21]}
{[%emt 00:00:21]} 3. Bb5 {[%clk 01:31:45]} {[%emt 00:00:06]} Nf6 {[%clk
01:29:34]} {[%emt 00:01:16]} 4. d3 {[%clk 01:31:49]} {[%emt 00:00:26]} Bc5
{[%clk 01:29:37]} {[%emt 00:00:26]} 5. Bxc6 {[%clk 01:32:07]} {[%emt 00:00:12]}
dxc6 {[%clk 01:29:42]} {[%emt 00:00:25]} 6. Qe2 {[%clk 01:32:28]} {[%emt
00:00:09]} Nd7 {[%clk 01:25:18]} {[%emt 00:04:54]} 7. Be3 {[%clk 01:31:32]}
{[%emt 00:01:25]} Bxe3 {[%clk 01:21:36]} {[%emt 00:04:13]} 8. Qxe3 {[%clk
01:29:30]} {[%emt 00:02:33]} c5 {[%clk 01:20:27]} {[%emt 00:01:39]} 9. Nc3
{[%clk 01:20:45]} {[%emt 00:09:15]} b6 {[%clk 01:14:21]} {[%emt 00:06:35]} 10.
O-O-O {[%clk 01:11:34]} {[%emt 00:09:41]} Bb7 {[%clk 01:09:32]} {[%emt
00:05:18]} 11. Nd2 {[%clk 01:06:58]} {[%emt 00:05:04]} Qe7 {[%clk 01:06:32]}
{[%emt 00:03:31]} 12. f4 {[%clk 01:04:13]} {[%emt 00:03:17]} exf4 {[%clk
01:04:13]} {[%emt 00:02:48]} 13. Qxf4 {[%clk 01:04:34]} {[%emt 00:00:09]} O-O-O
{[%clk 00:55:13]} {[%emt 00:09:29]} 14. Nc4 {[%clk 00:49:46]} {[%emt 00:15:18]}
Nf8 {[%clk 00:44:27]} {[%emt 00:11:15]} 15. Qf5+ {[%clk 00:26:42]} {[%emt
00:23:35]} Kb8 {[%clk 00:37:15]} {[%emt 00:07:41]} 16. Rhe1 {[%clk 00:26:34]}
{[%emt 00:00:37]} Ne6 {[%clk 00:34:59]} {[%emt 00:02:46]} 17. Kb1 {[%clk
00:25:47]} {[%emt 00:01:18]} Nd4 {[%clk 00:29:46]} {[%emt 00:05:42]} 18. Qf2
{[%clk 00:21:00]} {[%emt 00:05:17]} f6 {[%clk 00:25:20]} {[%emt 00:04:57]} 19.
h3 {[%clk 00:16:41]} {[%emt 00:04:49]} h5 {[%clk 00:24:29]} {[%emt 00:01:20]}
20. Ne2 {[%clk 00:16:01]} {[%emt 00:01:11]} Nxe2 {[%clk 00:19:27]} {[%emt
00:05:32]} 21. Qxe2 {[%clk 00:15:08]} {[%emt 00:01:21]} Bc8 {[%clk 00:18:48]}
{[%emt 00:01:10]} 22. Ne3 {[%clk 00:14:08]} {[%emt 00:01:30]} Be6 {[%clk
00:18:37]} {[%emt 00:00:42]} 23. Qf2 {[%clk 00:12:49]} {[%emt 00:01:49]} Qd7
{[%clk 00:17:20]} {[%emt 00:01:46]} 24. Re2 {[%clk 00:11:42]} {[%emt 00:01:37]}
a5 {[%clk 00:14:58]} {[%emt 00:02:52]} 25. Red2 {[%clk 00:08:42]} {[%emt
00:03:29]} a4 {[%clk 00:14:03]} {[%emt 00:01:26]} 26. a3 {[%clk 00:07:55]}
{[%emt 00:01:17]} Rhf8 {[%clk 00:13:36]} {[%emt 00:00:56]} 27. Qf3 {[%clk
00:05:14]} {[%emt 00:03:12]} g6 {[%clk 00:13:24]} {[%emt 00:00:42]} 28. Rf2
{[%clk 00:04:19]} {[%emt 00:01:25]} f5 {[%clk 00:12:20]} {[%emt 00:01:34]} 29.
exf5 {[%clk 00:03:23]} {[%emt 00:01:26]} Bxf5 {[%clk 00:12:36]} {[%emt
00:00:14]} 30. Qg3 {[%clk 00:01:34]} {[%emt 00:02:19]} Qe7 {[%clk 00:03:50]}
{[%emt 00:09:16]} 31. Nxf5 {[%clk 00:01:14]} {[%emt 00:00:50]} Rxf5 {[%clk
00:04:14]} {[%emt 00:00:06]} 32. Rxf5 {[%clk 00:01:20]} {[%emt 00:00:24]} gxf5
{[%clk 00:04:41]} {[%emt 00:00:02]} 33. Qf3 {[%clk 00:00:45]} {[%emt 00:01:05]}
Rg8 {[%clk 00:02:37]} {[%emt 00:02:34]} 34. Qxh5 {[%clk 00:00:45]} {[%emt
00:00:30]} Rxg2 {[%clk 00:02:24]} {[%emt 00:00:43]} 35. Qxf5 {[%clk 00:00:57]}
{[%emt 00:00:18]} Qe2 {[%clk 00:01:54]} {[%emt 00:01:00]} 36. Rc1 {[%clk
00:01:18]} {[%emt 00:00:09]} Rh2 {[%clk 00:01:57]} {[%emt 00:00:27]} 37. Qd7
{[%clk 00:00:44]} {[%emt 00:01:03]} Kb7 {[%clk 00:02:03]} {[%emt 00:00:25]} 38.
Qd5+ {[%clk 00:00:40]} {[%emt 00:00:34]} Kb8 {[%clk 00:02:31]} {[%emt
00:00:02]} 39. Qd7 {[%clk 00:01:05]} {[%emt 00:00:05]} Kb7 {[%clk 00:02:50]}
{[%emt 00:00:11]} 40. Qxa4 {[%clk 00:01:28]} {[%emt 00:00:08]} Rxh3 {[%clk
00:03:05]} {[%emt 00:00:14]} 41. Qd7 {[%clk 00:18:16]} {[%emt 00:13:41]} Qg2
{[%clk 00:30:45]} {[%emt 00:02:51]} 42. Qe6 {[%clk 00:15:32]} {[%emt 00:03:12]}
Rh5 {[%clk 00:19:32]} {[%emt 00:11:45]} 43. Re1 {[%clk 00:14:33]} {[%emt
00:01:28]} Qd5 {[%clk 00:16:49]} {[%emt 00:03:14]} 44. Qe2 {[%clk 00:13:16]}
{[%emt 00:01:45]} Rh8 {[%clk 00:14:56]} {[%emt 00:02:26]} 45. Rf1 {[%clk
00:12:44]} {[%emt 00:01:02]} Qc6 {[%clk 00:14:39]} {[%emt 00:00:47]} 46. Rf5
{[%clk 00:11:51]} {[%emt 00:01:22]} Re8 {[%clk 00:14:01]} {[%emt 00:01:09]} 47.
Qf1 {[%clk 00:11:30]} {[%emt 00:00:44]} Rh8 {[%clk 00:12:15]} {[%emt 00:02:22]}
48. Rg5 {[%clk 00:10:22]} {[%emt 00:01:39]} Rh2 {[%clk 00:10:42]} {[%emt
00:02:03]} 49. Rg1 {[%clk 00:10:10]} {[%emt 00:00:41]} Rh8 {[%clk 00:09:24]}
{[%emt 00:01:49]} 50. Qf7 {[%clk 00:06:31]} {[%emt 00:04:08]} Qe8 {[%clk
00:09:03]} {[%emt 00:00:52]} 51. Qc4 {[%clk 00:05:32]} {[%emt 00:01:27]} Rf8
{[%clk 00:07:10]} {[%emt 00:02:24]} 52. Rg7 {[%clk 00:03:34]} {[%emt 00:02:25]}
Qc6 {[%clk 00:04:49]} {[%emt 00:02:54]} 53. Re7 {[%clk 00:03:18]} {[%emt
00:00:43]} Rf5 {[%clk 00:02:42]} {[%emt 00:02:40]} 54. Re1 {[%clk 00:02:38]}
{[%emt 00:01:10]} Qd5 {[%clk 00:02:38]} {[%emt 00:00:34]} 55. Qa4 {[%clk
00:02:14]} {[%emt 00:00:52]} Rf2 {[%clk 00:02:20]} {[%emt 00:00:51]} 56. b3
{[%clk 00:01:12]} {[%emt 00:01:32]} Qd4 {[%clk 00:01:26]} {[%emt 00:01:24]} 57.
Qxd4 {[%clk 00:01:02]} {[%emt 00:00:40]} cxd4 {[%clk 00:01:54]} {[%emt
00:00:02]} 58. Re6 {[%clk 00:00:37]} {[%emt 00:00:55]} c5 {[%clk 00:01:49]}
{[%emt 00:00:35]} 59. b4 {[%clk 00:01:03]} {[%emt 00:00:04]} cxb4 {[%clk
00:00:38]} {[%emt 00:01:42]} 60. axb4 {[%clk 00:01:32]} {[%emt 00:00:02]} Rf5
{[%clk 00:00:35]} {[%emt 00:00:32]} 61. Rd6 {[%clk 00:00:59]} {[%emt 00:01:00]}
Rf4 {[%clk 00:00:58]} {[%emt 00:00:10]} 62. b5 {[%clk 00:01:03]} {[%emt
00:00:27]} Rf5 {[%clk 00:00:52]} {[%emt 00:00:36]} 63. Rd7+ {[%clk 00:01:30]}
{[%emt 00:00:03]} Kc8 {[%clk 00:01:18]} {[%emt 00:00:04]} 64. Rxd4 {[%clk
00:01:56]} {[%emt 00:00:04]} Rxb5+ {[%clk 00:01:42]} {[%emt 00:00:05]} 65. Ka2
{[%clk 00:02:03]} {[%emt 00:00:24]} Kc7 {[%clk 00:00:48]} {[%emt 00:01:25]} 66.
Ka3 {[%clk 00:02:27]} {[%emt 00:00:05]} Rh5 {[%clk 00:00:37]} {[%emt 00:00:41]}
67. Kb4 {[%clk 00:02:48]} {[%emt 00:00:09]} Kc6 {[%clk 00:00:38]} {[%emt
00:00:28]} 68. Rc4+ {[%clk 00:03:06]} {[%emt 00:00:12]} Kb7 {[%clk 00:00:36]}
{[%emt 00:00:32]} 69. Rg4 {[%clk 00:03:34]} {[%emt 00:00:02]} Rh1 {[%clk
00:00:32]} {[%emt 00:00:34]} 70. Rg7+ {[%clk 00:02:20]} {[%emt 00:01:44]} Kc6
{[%clk 00:00:54]} {[%emt 00:00:08]} 71. Rg6+ {[%clk 00:02:45]} {[%emt
00:00:05]} Kc7 {[%clk 00:01:15]} {[%emt 00:00:10]} 72. d4 {[%clk 00:02:40]}
{[%emt 00:00:34]} Rc1 {[%clk 00:00:51]} {[%emt 00:00:54]} 73. c3 {[%clk
00:00:49]} {[%emt 00:02:21]} Rb1+ {[%clk 00:00:33]} {[%emt 00:00:49]} 74. Kc4
{[%clk 00:01:14]} {[%emt 00:00:05]} Rc1 {[%clk 00:00:37]} {[%emt 00:00:26]} 75.
d5 {[%clk 00:01:22]} {[%emt 00:00:22]} Rd1 {[%clk 00:00:33]} {[%emt 00:00:35]}
76. Rc6+ {[%clk 00:00:34]} {[%emt 00:01:18]} Kb7 {[%clk 00:00:59]} {[%emt
00:00:03]} 77. Rd6 {[%clk 00:00:54]} {[%emt 00:00:09]} Kc7 {[%clk 00:01:17]}
{[%emt 00:00:12]} 78. Re6 {[%clk 00:01:20]} {[%emt 00:00:04]} Rd2 {[%clk
00:01:26]} {[%emt 00:00:21]} 79. Re4 {[%clk 00:01:22]} {[%emt 00:00:28]} Kd6
{[%clk 00:00:32]} {[%emt 00:01:24]} 80. Re6+ {[%clk 00:01:38]} {[%emt
00:00:12]} Kc7 {[%clk 00:01:01]} {[%emt 00:00:02]} 81. Re5 {[%clk 00:02:03]}
{[%emt 00:00:05]} Rd1 {[%clk 00:00:35]} {[%emt 00:00:56]} 82. Re2 {[%clk
00:02:00]} {[%emt 00:00:33]} Kd6 {[%clk 00:00:35]} {[%emt 00:00:31]} 83. Rb2
{[%clk 00:02:29]} Kc7 {[%clk 00:00:57]} {[%emt 00:00:08]} 84. Rb5 {[%clk
00:02:56]} {[%emt 00:00:04]} Kb7 {[%clk 00:01:02]} {[%emt 00:00:25]} 85. Kb3
{[%clk 00:03:00]} {[%emt 00:00:25]} Rb1+ {[%clk 00:01:19]} {[%emt 00:00:13]} 86.
Kc4 {[%clk 00:03:25]} {[%emt 00:00:05]} Rd1 {[%clk 00:01:44]} {[%emt 00:00:05]}
87. Rb2 {[%clk 00:03:34]} {[%emt 00:00:22]} Kc7 {[%clk 00:02:03]} {[%emt
00:00:11]} 88. Rh2 {[%clk 00:03:35]} {[%emt 00:00:29]} Kd6 {[%clk 00:02:07]}
{[%emt 00:00:26]} 89. Rh4 {[%clk 00:03:16]} {[%emt 00:00:49]} Rd2 {[%clk
00:01:25]} {[%emt 00:01:13]} 90. Kb5 {[%clk 00:01:55]} {[%emt 00:01:50]} Kxd5
{[%clk 00:01:29]} {[%emt 00:00:26]} 91. Kxb6 {[%clk 00:01:13]} {[%emt
00:01:12]} Rc2 {[%clk 00:01:00]} {[%emt 00:00:57]} 92. Rd4+ {[%clk 00:01:21]}
{[%emt 00:00:22]} Ke5 {[%clk 00:01:16]} {[%emt 00:00:16]} 93. Rc4 {[%clk
00:01:23]} {[%emt 00:00:28]} Kd6 {[%clk 00:01:07]} {[%emt 00:00:39]} 94. Rc6
{[%clk 00:01:45]} {[%emt 00:00:09]} Kd5 {[%clk 00:00:32]} {[%emt 00:01:06]} 95.
Rc5+ {[%clk 00:01:53]} {[%emt 00:00:21]} Ke4 {[%clk 00:00:34]} {[%emt
00:00:28]} 96. Kb5 {[%clk 00:01:53]} {[%emt 00:00:30]} Kd3 {[%clk 00:00:54]}
{[%emt 00:00:11]} 97. c4 {[%clk 00:01:58]} {[%emt 00:00:25]} Rb2+ {[%clk
00:01:09]} {[%emt 00:00:15]} 98. Kc6 {[%clk 00:02:24]} {[%emt 00:00:04]} Rh2
{[%clk 00:00:35]} {[%emt 00:01:04]} 99. Kb6 {[%clk 00:02:42]} {[%emt 00:00:12]}
Kd4 {[%clk 00:00:41]} {[%emt 00:00:23]} 100. Rc6 {[%clk 00:02:08]} {[%emt
00:01:04]} Rb2+ {[%clk 00:00:50]} {[%emt 00:00:22]} 101. Ka5 {[%clk 00:02:07]}
{[%emt 00:00:31]} Ra2+ {[%clk 00:01:01]} {[%emt 00:00:20]} 102. Kb5 {[%clk
00:02:24]} {[%emt 00:00:12]} Rb2+ {[%clk 00:01:24]} {[%emt 00:00:07]} 103. Ka4
{[%clk 00:02:50]} {[%emt 00:00:03]} Rb1 {[%clk 00:01:20]} {[%emt 00:00:35]} 104.
Rc8 {[%clk 00:03:00]} {[%emt 00:00:20]} Ra1+ {[%clk 00:01:20]} {[%emt
00:00:30]} 105. Kb3 {[%clk 00:02:58]} {[%emt 00:00:31]} Rb1+ {[%clk 00:01:45]}
{[%emt 00:00:06]} 106. Ka3 {[%clk 00:03:01]} {[%emt 00:00:20]} Kc3 {[%clk
00:01:48]} {[%emt 00:00:33]} 107. Ka2 {[%clk 00:02:34]} {[%emt 00:00:57]} Rb2+
{[%clk 00:02:01]} {[%emt 00:00:18]} 108. Ka1 {[%clk 00:02:52]} {[%emt
00:00:10]} Rb4 {[%clk 00:01:40]} {[%emt 00:00:54]} 109. Rh8 {[%clk 00:02:34]}
{[%emt 00:00:46]} Rxc4 {[%clk 00:01:56]} {[%emt 00:00:16]} 110. Rh3+ {[%clk
00:02:54]} {[%emt 00:00:09]} 1/2-1/2

[Event "TePe Sigeman & Co Chess Tournament 2025"]
[Site "Elite Plaza Hotel, Gustav Adolfs Torg 49, Malmo, Sweden"]
[Date "2025.05.21"]
[Round "2.1"]
[White "Sindarov, Javokhir"]
[Black "Robson, Ray"]
[Result "1/2-1/2"]
[TimeControl "90 minutes for 40 moves + 30 minutes for the rest of the game + 30 seconds per move from move one."]
[WhiteTitle "GM"]
[BlackTitle "GM"]
[WhiteFideId "14205483"]
[BlackFideId "2023970"]
[WhiteElo "2706"]
[BlackElo "2692"]

1. d4 {[%clk 01:30:58]} {[%emt 18:09:32]} Nf6 {[%clk 01:30:42]} {[%emt
00:00:43]} 2. c4 {[%clk 01:31:19]} {[%emt 00:00:10]} e6 {[%clk 01:30:56]}
{[%emt 00:00:16]} 3. Nf3 {[%clk 01:31:43]} {[%emt 00:00:06]} d5 {[%clk
01:30:50]} {[%emt 00:00:36]} 4. Nc3 {[%clk 01:31:55]} {[%emt 00:00:18]} c5
{[%clk 01:28:23]} {[%emt 00:02:55]} 5. cxd5 {[%clk 01:31:58]} {[%emt 00:00:29]}
cxd4 {[%clk 01:28:12]} {[%emt 00:00:41]} 6. Qxd4 {[%clk 01:32:05]} {[%emt
00:00:23]} exd5 {[%clk 01:28:17]} {[%emt 00:00:24]} 7. e4 {[%clk 01:32:19]}
{[%emt 00:00:17]} dxe4 {[%clk 01:27:22]} {[%emt 00:01:25]} 8. Qxd8+ {[%clk
01:32:00]} {[%emt 00:00:50]} Kxd8 {[%clk 01:27:47]} {[%emt 00:00:04]} 9. Ng5
{[%clk 01:32:11]} {[%emt 00:00:19]} Be6 {[%clk 01:27:14]} {[%emt 00:01:03]} 10.
Nxe6+ {[%clk 01:14:25]} {[%emt 00:18:17]} fxe6 {[%clk 01:27:39]} {[%emt
00:00:04]} 11. Bg5 {[%clk 01:14:52]} {[%emt 00:00:04]} Ke8 {[%clk 01:03:30]}
{[%emt 00:24:37]} 12. O-O-O {[%clk 01:05:04]} {[%emt 00:10:19]} Nc6 {[%clk
00:58:38]} {[%emt 00:05:21]} 13. Bxf6 {[%clk 01:04:59]} {[%emt 00:00:35]} gxf6
{[%clk 00:59:03]} {[%emt 00:00:04]} 14. Nxe4 {[%clk 01:05:25]} {[%emt
00:00:05]} f5 {[%clk 00:51:40]} {[%emt 00:07:53]} 15. Ng5 {[%clk 01:01:25]}
{[%emt 00:04:31]} Ke7 {[%clk 00:48:15]} {[%emt 00:03:53]} 16. Bc4 {[%clk
00:56:09]} {[%emt 00:05:48]} Bh6 {[%clk 00:45:47]} {[%emt 00:02:57]} 17. h4
{[%clk 00:56:17]} {[%emt 00:00:23]} Rad8 {[%clk 00:29:02]} {[%emt 00:17:14]} 18.
Kb1 {[%clk 00:41:34]} {[%emt 00:15:13]} Rxd1+ {[%clk 00:08:23]} {[%emt
00:21:09]} 19. Rxd1 {[%clk 00:42:00]} {[%emt 00:00:04]} Bxg5 {[%clk 00:08:32]}
{[%emt 00:00:19]} 20. hxg5 {[%clk 00:42:26]} {[%emt 00:00:05]} Rg8 {[%clk
00:08:40]} {[%emt 00:00:22]} 21. f4 {[%clk 00:40:41]} {[%emt 00:02:15]} h6
{[%clk 00:08:40]} {[%emt 00:00:30]} 22. gxh6 {[%clk 00:40:06]} {[%emt
00:01:04]} Rxg2 {[%clk 00:09:06]} {[%emt 00:00:03]} 23. Rh1 {[%clk 00:39:54]}
{[%emt 00:00:42]} Rg8 {[%clk 00:09:34]} {[%emt 00:00:03]} 24. h7 {[%clk
00:37:52]} {[%emt 00:02:32]} Rh8 {[%clk 00:10:02]} {[%emt 00:00:02]} 25. Kc2
{[%clk 00:38:12]} {[%emt 00:00:09]} Nd8 {[%clk 00:08:11]} {[%emt 00:02:22]} 26.
b4 {[%clk 00:35:56]} {[%emt 00:02:47]} Kf6 {[%clk 00:07:02]} {[%emt 00:01:38]}
27. b5 {[%clk 00:35:23]} {[%emt 00:01:03]} b6 {[%clk 00:05:05]} {[%emt
00:02:27]} 28. Kc3 {[%clk 00:35:11]} {[%emt 00:00:41]} Nf7 {[%clk 00:04:55]}
{[%emt 00:00:41]} 29. a4 {[%clk 00:35:34]} {[%emt 00:00:07]} Re8 {[%clk
00:02:28]} {[%emt 00:02:56]} 30. Re1 {[%clk 00:35:04]} {[%emt 00:00:59]} Nh8
{[%clk 00:01:26]} {[%emt 00:01:33]} 31. Rg1 {[%clk 00:30:35]} {[%emt 00:04:59]}
Re7 {[%clk 00:01:11]} {[%emt 00:00:45]} 32. Rh1 {[%clk 00:30:25]} {[%emt
00:00:41]} Kg7 {[%clk 00:01:26]} {[%emt 00:00:15]} 33. Re1 {[%clk 00:29:08]}
{[%emt 00:01:47]} Kf6 {[%clk 00:01:07]} {[%emt 00:00:49]} 34. Rh1 {[%clk
00:29:25]} {[%emt 00:00:14]} Kg7 {[%clk 00:01:35]} {[%emt 00:00:02]} 35. Re1
{[%clk 00:29:33]} {[%emt 00:00:22]} Kf6 {[%clk 00:02:03]} {[%emt 00:00:02]} 36.
Rh1 {[%clk 00:29:56]} {[%emt 00:00:07]} 1/2-1/2